{"text_format":"1","workbook":"xlsx","n_sheets":5,"sheets":["Berichte","Rangliste","M - Ergebnisse","Spielergebnisse","Tabelle1"],"not_rendered":{"charts":0,"images":4,"macros":1,"external_links":0,"defined_names":5,"comments":0,"pivot_tables":0},"unopened":[],"bounds":{"document_bytes":16777216,"sheet_cells":100000,"rows_first":2000,"rows_last":500,"rows_between":2000,"halvings":0,"cell_chars":16384,"cell_head_chars":4096},"cells_cut":0,"cells_raw":0,"read":"whole","date_system":"1900"}

{"sheet":"Berichte","index":0,"n_rows":632,"n_cols":81,"rows_kept":632,"cut":false,"hidden":false,"merged":[[97,0,97,13],[144,0,144,13],[145,0,145,13],[0,0,0,13],[1,0,1,13],[48,0,48,13],[49,0,49,13],[96,0,96,13]]}
["Mannschaftsmeisterschaft 2019/20 "]
["Spielberichte   "]
["A-Liga",null,null,null,null,null,null,{"$f":"H207","v":1},null,null,null,null,null,"KW40"]
[13,"Götzis 1",0,null,null,"  gegen",null,27,"Nofels 1",null,"",null,"Sportcenter"]
["Sp.Nr.","Name","Volle","Abr.","Summe","FW",null,"Sp.Nr.","Name",null,"Volle","Abr.","Summe","FW"]
[82,"Einwaller Harald",157,69,226,4,null,199,"Paulitsch Gottfried",null,166,86,252,5,null,null,null,null,null,null,null,null,null,null,null,null,null,null,null,null,null,null,null,null,null,null,null,null,null,null,null,{"$f":"MAX(E6:E9,M6:M9)","v":273}]
[353,"Schatzmann Doris",183,90,273,3,null,413,"Müller Hildegard",null,188,70,258,7]
[85,"Hyden Walter",176,92,268,1,null,198,"Mair Otmar",null,176,68,244,9]
[87,"Pürstl Richard",187,80,267,4,null,200,"Peterlunger Valerian",null,168,53,221,9]
[3,null,703,331,1034,12,null,1,null,null,698,277,975,30]
[0,"Götzis 1",null,59,"Kegel",null,null,3,"SpP","2","MP",null,5,"LP"]
[0,"Nofels 1",null,-59,"Kegel",null,null,1,"SpP","0","MP",null,1,"LP"]
[18,"Koblach 1",0,null,null,"  gegen",null,35,"Vorderwald",null,"",null,"Sportcenter"]
["Sp.Nr.","Name","Volle","Abr.","Summe","FW",null,"Sp.Nr.","Name",null,"Volle","Abr.","Summe","FW"]
[146,"Nikolic Milosav",181,87,268,3,null,446,"Berkmann Monika",null,153,77,230,4,null,null,null,null,null,null,null,null,null,null,null,null,null,null,null,null,null,null,null,null,null,null,null,null,null,null,null,{"$f":"MAX(E15:E18,M15:M18)","v":277}]
[134,"Fessler Gerd",165,71,236,5,null,237,"Hörmann Peter",null,167,72,239,3]
[135,"Fleisch Friedl",169,108,277,3,null,241,"Unterguggenberger H.",null,172,61,233,9]
[136,"Grassmugg Josef",166,87,253,1,null,242,"Vazovec Roman",null,173,67,240,4]
[3,null,681,353,1034,12,null,1,null,null,665,277,942,20]
[0,"Koblach 1",null,92,"Kegel",null,null,3,"SpP","2","MP",null,5,"LP"]
[0,"Vorderwald",null,-92,"Kegel",null,null,1,"SpP","0","MP",null,1,"LP"]
[6,"Dornbirn 1",0,null,null,"  gegen",null,17,"Hohenems",null,"",null,"Güterbahnhof"]
["Sp.Nr.","Name","Volle","Abr.","Summe","FW",null,"Sp.Nr.","Name",null,"Volle","Abr.","Summe","FW"]
[46,"Kessler Günter",165,87,252,3,null,114,"Luif Kurt",null,179,65,244,6,null,null,null,null,null,null,null,null,null,null,null,null,null,null,null,null,null,null,null,null,null,null,null,null,null,null,null,{"$f":"MAX(E24:E27,M24:M27)","v":267}]
[38,"Berger Reinhard",171,93,264,2,null,112,"Durakovic Mahmud ",null,166,86,252,4]
[43,"Gradwohl Josef",184,66,250,8,null,111,"Cuk Jure",null,190,61,251,10]
[44,"Herceg Niki",178,89,267,4,null,117,"Prugg Franz",null,159,70,229,6]
[3,null,698,335,1033,17,null,1,null,null,694,282,976,26]
[0,"Dornbirn 1",null,57,"Kegel",null,null,3,"SpP","2","MP",null,5,"LP"]
[0,"Hohenems",null,-57,"Kegel",null,null,1,"SpP","0","MP",null,1,"LP"]
[22,"Lauterach",0,null,null,"  gegen",null,7,"Dornbirn 2",null,"",null,"Güterbahnhof"]
["Sp.Nr.","Name","Volle","Abr.","Summe","FW",null,"Sp.Nr.","Name",null,"Volle","Abr.","Summe","FW"]
[382,"Gufler Erika ",181,90,271,2,null,36,"Ausserwinkler Adolf",null,160,89,249,4,null,null,null,null,null,null,null,null,null,null,null,null,null,null,null,null,null,null,null,null,null,null,null,null,null,null,null,{"$f":"MAX(E33:E36,M33:M36)","v":282}]
[158,"Dür Wilfried",179,65,244,9,null,50,"Mennel Elmar",null,171,74,245,6]
[157,"Braitsch Wilfried ",169,99,268,4,null,47,"Kezic Blago",null,200,82,282,3]
[161,"Koppler Günter",175,54,229,10,null,54,"Vauce Gottfried",null,152,66,218,6]
[2,null,704,308,1012,25,null,2,null,null,683,311,994,19]
[0,"Lauterach",null,18,"Kegel",null,null,2,"SpP","2","MP",null,4,"LP"]
[0,"Dornbirn 2",null,-18,"Kegel",null,null,2,"SpP","0","MP",null,2,"LP"]
[36,"Wolfurt 1",0,null,null,"  gegen",null,4,"Bürs 1",null,""]
["Sp.Nr.","Name","Volle","Abr.","Summe","FW",null,"Sp.Nr.","Name",null,"Volle","Abr.","Summe","FW"]
[null,null,null,null,null,null,null,null,null,null,null,null,null,null,null,null,null,null,null,null,null,null,null,null,null,null,null,null,null,null,null,null,null,null,null,null,null,null,null,null,null,{"$f":"MAX(E42:E45,M42:M45)","v":0}]
[]
[]
[]
[]
[]
[]
["Mannschaftsmeisterschaft 2019/20 "]
["Spielberichte   "]
["B-Liga",null,null,null,null,null,null,{"$f":"H207","v":1},null,null,null,null,null,"KW40"]
[19,"Koblach 2",0,null,null,"  gegen",null,20,"Koblach 3",null,"",null,"Sportcenter"]
["Sp.Nr.","Name","Volle","Abr.","Summe","FW",null,"Sp.Nr.","Name",null,"Volle","Abr.","Summe","FW"]
[375,"Schuler Sieglinde",168,54,222,7,null,373,"Hämmerle Sabine",null,159,62,221,11,null,null,null,null,null,null,null,null,null,null,null,null,null,null,null,null,null,null,null,null,null,null,null,null,null,null,null,{"$f":"MAX(E54:E57,M54:M57)","v":265}]
[151,"Tusch Norbert",184,69,253,2,null,132,"Bottesi Siegfried",null,180,85,265,4]
[142,"Irovec Viktor",173,62,235,6,null,139,"Häusle Reinhold",null,157,41,198,10]
[148,"Schatzer Günther",177,75,252,3,null,133,"Egle Norbert",null,176,60,236,7]
[2,null,702,260,962,18,null,2,null,null,672,248,920,32]
[0,"Koblach 2",null,42,"Kegel",null,null,2,"SpP","2","MP",null,4,"LP"]
[0,"Koblach 3",null,-42,"Kegel",null,null,2,"SpP","0","MP",null,2,"LP"]
[15,"Hard 1",0,null,null,"  gegen",null,5,"Bürs 2",null,"",null,"Freizeitz. Hard"]
["Sp.Nr.","Name","Volle","Abr.","Summe","FW",null,"Sp.Nr.","Name",null,"Volle","Abr.","Summe","FW"]
[105,0,169,79,248,6,null,321,"Hepberger Monika",null,171,86,257,7,null,null,null,null,null,null,null,null,null,null,null,null,null,null,null,null,null,null,null,null,null,null,null,null,null,null,null,{"$f":"MAX(E63:E66,M63:M66)","v":257}]
[100,"Pfanner Klaus",176,70,246,6,null,322,"Leimgruber Roswitha",null,182,67,249,7]
[97,"Di-Meglio Jean-Luc",152,65,217,7,null,324,"Scherrer Luise",null,163,70,233,2]
[101,"Prutsch Franz",164,86,250,5,null,326,"Witting Magdalena",null,168,49,217,13]
[2,null,661,300,961,24,null,2,null,null,684,272,956,29]
[0,"Hard 1",null,5,"Kegel",null,null,2,"SpP","2","MP",null,4,"LP"]
[0,"Bürs 2",null,-5,"Kegel",null,null,2,"SpP","0","MP",null,2,"LP"]
[32,"Vandans 1",0,null,null,"  gegen",null,33,"Vandans 2",null,"",null,"Illwerke Rodund"]
["Sp.Nr.","Name","Volle","Abr.","Summe","FW",null,"Sp.Nr.","Name",null,"Volle","Abr.","Summe","FW"]
[258,"Ströhle Helmut",168,68,236,6,null,436,"Bitschnau Ursula",null,167,86,253,2,null,null,null,null,null,null,null,null,null,null,null,null,null,null,null,null,null,null,null,null,null,null,null,null,null,null,null,{"$f":"MAX(E72:E75,M72:M75)","v":253}]
[256,"Simenowskyj Stefan",163,71,234,6,null,442,"Sinko Lotte",null,167,79,246,8]
[252,"Maier Wilfried",158,79,237,4,null,443,"Ströhle Renate",null,170,81,251,6]
[260,"Valentin Gerhard",168,54,222,7,null,440,"Mangeng Tamara",null,158,61,219,6]
[1,null,657,272,929,23,null,3,null,null,662,307,969,22]
[0,"Vandans 1",null,-40,"Kegel",null,null,1,"SpP","0","MP",null,1,"LP"]
[0,"Vandans 2",null,40,"Kegel",null,null,3,"SpP","2","MP",null,5,"LP"]
[25,"Mäder 1",0,null,null,"  gegen",null,8,"Dornbirn 3",null,"",null,"Sportcenter"]
["Sp.Nr.","Name","Volle","Abr.","Summe","FW",null,"Sp.Nr.","Name",null,"Volle","Abr.","Summe","FW"]
[399,"Hinteregger Steffi",175,68,243,4,null,55,"Winder Josef",null,163,67,230,8,null,null,null,null,null,null,null,null,null,null,null,null,null,null,null,null,null,null,null,null,null,null,null,null,null,null,null,{"$f":"MAX(E81:E84,M81:M84)","v":245}]
[397,"Ebenhoch Monika",154,71,225,7,null,39,"Berthold Alfons",null,164,62,226,5]
[185,"Hinteregger Erwin",144,52,196,11,null,40,"Ehgartner Wolfgang",null,179,66,245,8]
[189,"Riedmann Markus",151,63,214,5,null,42,"Fussenegger Anton",null,171,53,224,10]
[1,null,624,254,878,27,null,3,null,null,677,248,925,31]
[0,"Mäder 1",null,-47,"Kegel",null,null,1,"SpP","0","MP",null,1,"LP"]
[0,"Dornbirn 3",null,47,"Kegel",null,null,3,"SpP","2","MP",null,5,"LP"]
[23,"Lustenau 1",0,null,null,"  gegen",null,1,"Bludenz",null,"",null,"Landessportz."]
["Sp.Nr.","Name","Volle","Abr.","Summe","FW",null,"Sp.Nr.","Name",null,"Volle","Abr.","Summe","FW"]
[392,"Schelling Hedi",140,38,178,9,null,2,"Grundner Adolf",null,152,52,204,9,null,null,null,null,null,null,null,null,null,null,null,null,null,null,null,null,null,null,null,null,null,null,null,null,null,null,null,{"$f":"MAX(E90:E93,M90:M93)","v":244}]
[170,"Karitnig Franz",158,61,219,5,null,303,"Podusel Renate",null,152,60,212,5]
[393,"Stipetic Marija",167,64,231,6,null,3,"Battisti Anton",null,163,54,217,9]
[174,"Riedmann Werner",178,66,244,4,null,4,"Schöner Kurt",null,159,44,203,15]
[3,null,643,229,872,24,null,1,null,null,626,210,836,38]
[0,"Lustenau 1",null,36,"Kegel",null,null,3,"SpP","2","MP",null,5,"LP"]
[0,"Bludenz",null,-36,"Kegel",null,null,1,"SpP","0","MP",null,1,"LP"]
["Mannschaftsmeisterschaft 2019/20 "]
["Spielberichte   "]
["C-Liga",null,null,null,null,null,null,{"$f":"H207","v":1},null,null,null,null,null,"KW40"]
[37,"Wolfurt 2",0,null,null,"  gegen",null,2,"Bregenz 1",null,"",null,"Güterbahnhof"]
["Sp.Nr.","Name","Volle","Abr.","Summe","FW",null,"Sp.Nr.","Name",null,"Volle","Abr.","Summe","FW"]
[452,"Lick Brunhilde",161,62,223,8,null,17,"Scheiber Martin",null,143,59,202,8,null,null,null,null,null,null,null,null,null,null,null,null,null,null,null,null,null,null,null,null,null,null,null,null,null,null,null,{"$f":"MAX(E102:E105,M102:M105)","v":261}]
[451,"Gutmann Lore",186,75,261,8,null,314,"Schneider Steffi",null,185,71,256,5]
[275,"Wolf Othmar",175,86,261,2,null,313,"Moosbrugger Elfriede",null,171,61,232,7]
[269,"Florineth Bruno",169,69,238,5,null,11,"Berkmann Josef",null,147,70,217,4]
[3,null,691,292,983,23,null,1,null,null,646,261,907,24]
[0,"Wolfurt 2",null,76,"Kegel",null,null,3,"SpP","2","MP",null,5,"LP"]
[0,"Bregenz 1",null,-76,"Kegel",null,null,1,"SpP","0","MP",null,1,"LP"]
[9,"Dornbirn 4",0,null,null,"  gegen",null,29,"Rankweil",null,"",null,"Güterbahnhof"]
["Sp.Nr.","Name","Volle","Abr.","Summe","FW",null,"Sp.Nr.","Name",null,"Volle","Abr.","Summe","FW"]
[336,"Schrei Elfriede",180,57,237,11,null,213,"Fetzel Anton",null,155,85,240,6,null,null,null,null,null,null,null,null,null,null,null,null,null,null,null,null,null,null,null,null,null,null,null,null,null,null,null,{"$f":"MAX(E111:E114,M111:M114)","v":255}]
[334,"Oblak Heidi",176,77,253,6,null,221,"Simoner Gottfried",null,170,85,255,4]
[331,"Kofler Christine",175,72,247,3,null,211,"Dreier Fridolin",null,165,77,242,9]
[333,"Mayr Ernestine",172,64,236,8,null,212,"Ender Helmut",null,186,67,253,6]
[2,null,703,270,973,28,null,2,null,null,676,314,990,25]
[0,"Dornbirn 4",null,-17,"Kegel",null,null,2,"SpP","0","MP",null,2,"LP"]
[0,"Rankweil",null,17,"Kegel",null,null,2,"SpP","2","MP",null,4,"LP"]
[14,"Götzis 2",0,null,null,"  gegen",null,28,"Nofels 2",null,"",null,"Sportcenter"]
["Sp.Nr.","Name","Volle","Abr.","Summe","FW",null,"Sp.Nr.","Name",null,"Volle","Abr.","Summe","FW"]
[83,"Fertschnig Reinhard",155,54,209,6,null,197,"Lins Josef",null,176,73,249,5,null,null,null,null,null,null,null,null,null,null,null,null,null,null,null,null,null,null,null,null,null,null,null,null,null,null,null,{"$f":"MAX(E120:E123,M120:M123)","v":249}]
[352,"Mally Marlene",142,61,203,5,null,411,"Lins Ruth",null,138,47,185,12]
[90,"Scherz Ernst",170,69,239,4,null,416,"Wirtensohn Elisabeth",null,170,62,232,6]
[355,"Theiner Elfriede",165,80,245,2,null,203,"Unterweger Gerhard",null,162,59,221,9]
[2,null,632,264,896,17,null,2,null,null,646,241,887,32]
[0,"Götzis 2",null,9,"Kegel",null,null,2,"SpP","2","MP",null,4,"LP"]
[0,"Nofels 2",null,-9,"Kegel",null,null,2,"SpP","0","MP",null,2,"LP"]
[34,"Vandans 3",0,null,null,"  gegen",null,39,"spielfrei",null,""]
["Sp.Nr.","Name","Volle","Abr.","Summe","FW",null,"Sp.Nr.","Name",null,"Volle","Abr.","Summe","FW"]
[null,null,null,null,null,null,null,null,null,null,null,null,null,null,null,null,null,null,null,null,null,null,null,null,null,null,null,null,null,null,null,null,null,null,null,null,null,null,null,null,null,{"$f":"MAX(E129:E132,M129:M132)","v":0}]
[]
[]
[]
[]
[]
[]
[11,"Feldkirch 1",0,null,null,"  gegen",null,12,"Feldkirch 2",null,""]
["Sp.Nr.","Name","Volle","Abr.","Summe","FW",null,"Sp.Nr.","Name",null,"Volle","Abr.","Summe","FW"]
[null,null,null,null,null,null,null,null,null,null,null,null,null,null,null,null,null,null,null,null,null,null,null,null,null,null,null,null,null,null,null,null,null,null,null,null,null,null,null,null,null,{"$f":"MAX(E138:E141,M138:M141)","v":0}]
[]
[]
[]
[]
[]
[]
["Mannschaftsmeisterschaft 2019/20 "]
["Spielberichte   "]
["D-Liga",null,null,null,null,null,null,{"$f":"H207","v":1},null,null,null,null,null,"KW40"]
[30,"Rheindelta 1",0,null,null,"  gegen",null,31,"Rheindelta 2",null,"",null,"Freizeitz. Hard"]
["Sp.Nr.","Name","Volle","Abr.","Summe","FW",null,"Sp.Nr.","Name",null,"Volle","Abr.","Summe","FW"]
[229,"Hummel Franz",173,87,260,6,null,427,"Car Herta",null,138,31,169,17,null,null,null,null,null,null,null,null,null,null,null,null,null,null,null,null,null,null,null,null,null,null,null,null,null,null,null,{"$f":"MAX(E150:E153,M150:M153)","v":260}]
[428,"Gobbi Erika",167,84,251,0,null,429,"Nedok Manuela",null,149,56,205,13]
[430,"Schobel Monika",165,69,234,10,null,227,"Fetz Hans",null,137,80,217,8]
[228,"Gobbi Paolo",170,68,238,4,null,232,"Schobel Anton",null,175,59,234,10]
[4,null,675,308,983,20,null,0,null,null,599,226,825,48]
[0,"Rheindelta 1",null,158,"Kegel",null,null,4,"SpP","2","MP",null,6,"LP"]
[0,"Rheindelta 2",null,-158,"Kegel",null,null,0,"SpP","0","MP",null,0,"LP"]
[38,"ESV Bregenz Wolfurt",0,null,null,"  gegen",null,24,"Lustenau 2",null,"",null,"Güterbahnhof"]
["Sp.Nr.","Name","Volle","Abr.","Summe","FW",null,"Sp.Nr.","Name",null,"Volle","Abr.","Summe","FW"]
[281,"Brichaz Franz",157,62,219,9,null,169,"Isele Kurt",null,141,52,193,9,null,null,null,null,null,null,null,null,null,null,null,null,null,null,null,null,null,null,null,null,null,null,null,null,null,null,null,{"$f":"MAX(E159:E162,M159:M162)","v":268}]
[464,"Schaarschmidt Heidemarie",200,68,268,4,null,175,"Trippl Helmut",null,168,85,253,5]
[282,"Marint Günther",168,63,231,8,null,168,"Hoos Ferenc",null,180,53,233,11]
[465,"Weinmüller Karin",162,69,231,4,null,167,"Felder Reinhard",null,169,57,226,11]
[2,null,687,262,949,25,null,2,null,null,658,247,905,36]
[0,"ESV Bregenz Wolfurt",null,44,"Kegel",null,null,2,"SpP","2","MP",null,4,"LP"]
[0,"Lustenau 2",null,-44,"Kegel",null,null,2,"SpP","0","MP",null,2,"LP"]
[21,"Koblach 4",0,null,null,"  gegen",null,26,"Mäder 2",null,"",null,"Sportcenter"]
["Sp.Nr.","Name","Volle","Abr.","Summe","FW",null,"Sp.Nr.","Name",null,"Volle","Abr.","Summe","FW"]
[374,"Hohensinger Heidi",172,62,234,10,null,192,"Sandholzer Alfred",null,153,53,206,6,null,null,null,null,null,null,null,null,null,null,null,null,null,null,null,null,null,null,null,null,null,null,null,null,null,null,null,{"$f":"MAX(E168:E171,M168:M171)","v":236}]
[371,"Bolter Regina",153,62,215,8,null,401,"Lindner Margit",null,149,58,207,10]
[149,"Schellhorn Ludwig",161,69,230,5,null,182,"Ender Heinrich",null,156,52,208,10]
[137,"Haaser Andreas",165,71,236,5,null,193,"Vallant Karl",null,169,53,222,11]
[3,null,651,264,915,28,null,1,null,null,627,216,843,37]
[0,"Koblach 4",null,72,"Kegel",null,null,3,"SpP","2","MP",null,5,"LP"]
[0,"Mäder 2",null,-72,"Kegel",null,null,1,"SpP","0","MP",null,1,"LP"]
[16,"Hard 2",0,null,null,"  gegen",null,3,"Bregenz 2",null,"",null,"Freizeitz. Hard"]
["Sp.Nr.","Name","Volle","Abr.","Summe","FW",null,"Sp.Nr.","Name",null,"Volle","Abr.","Summe","FW"]
[96,"Bickel Manfred",150,61,211,8,null,315,"Schwärzler Ulrike",null,147,69,216,10,null,null,null,null,null,null,null,null,null,null,null,null,null,null,null,null,null,null,null,null,null,null,null,null,null,null,null,{"$f":"MAX(E177:E180,M177:M180)","v":252}]
[102,"Stroy Gerhard",160,51,211,8,null,312,"Höfle Blanka",null,120,54,174,10]
[361,"Di-Meglio Gerda",152,40,192,15,null,14,"Fischer Peter",null,157,42,199,15]
[363,"Woinesich Eva",181,71,252,8,null,18,"Schwärzler Herbert",null,145,56,201,5]
[3,null,643,223,866,39,null,1,null,null,569,221,790,40]
[0,"Hard 2",null,76,"Kegel",null,null,3,"SpP","2","MP",null,5,"LP"]
[0,"Bregenz 2",null,-76,"Kegel",null,null,1,"SpP","0","MP",null,1,"LP"]
[10,"Dornbirn 5",0,null,null,"  gegen",null,40,"spielfrei",null,""]
["Sp.Nr.","Name","Volle","Abr.","Summe","FW",null,"Sp.Nr.","Name",null,"Volle","Abr.","Summe","FW"]
[null,null,null,null,null,null,null,null,null,null,null,null,null,null,null,null,null,null,null,null,null,null,null,null,null,null,null,null,null,null,null,null,null,null,null,null,null,null,null,null,null,{"$f":"MAX(E186:E189,M186:M189)","v":0}]
[]
[]
[]
[]
[]
[]
[]
[]
[]
[]
[]
[]
[]
[]
[]
[]
[]
["PENSIONISTENVERBAND",null,null,null,null,null,null,null,null,null,null,null,null,"Schatzmann Doris",null,null,null,null,null,null,null,null,null,null,null,null,null,null,null,null,null,null,null,null,null,null,"PENSIONISTENVERBAND",null,null,null,null,null,null,null,null,null,null,null,null,"Bottesi Siegfried",null,null,"PENSIONISTENVERBAND",null,null,null,null,null,null,null,null,null,null,null,null,"Wolf Othmar",null,"PENSIONISTENVERBAND",null,null,null,null,null,null,null,null,null,null,null,null,"Hummel Franz"]
["VORARLBERG                     ",null,null,null,"SPIELBERICHT",null,null,null,null,null,"    Tagesbeste(r)  ",353,273,null,null,null,null,null,null,null,null,null,null,null,null,null,null,null,null,null,null,null,null,null,null,null,"VORARLBERG                     ",null,null,null,"SPIELBERICHT",null,null,null,null,null,"    Tagesbeste(r)  ",132,265,null,null,null,"VORARLBERG                     ",null,null,null,"SPIELBERICHT",null,null,null,null,null,"    Tagesbeste(r)  ",275,261,null,null,"VORARLBERG                     ",null,null,null,"SPIELBERICHT",null,null,null,null,null,"    Tagesbeste(r)  ",229,260]
["Neigungsgruppe Kegeln",null,null,null,null,null,null,null,null,null,null,null,null,null,null,null,null,null,null,null,null,null,null,null,null,null,null,null,null,null,null,null,null,null,null,null,"Neigungsgruppe Kegeln",null,null,null,null,null,null,null,null,null,null,null,null,null,null,null,"Neigungsgruppe Kegeln",null,null,null,null,null,null,null,null,null,null,null,null,null,null,"Neigungsgruppe Kegeln"]
[1,"",null,null,null,null,"Runde",1,1,null,null,"Koblach",43741,null,null,null,null,null,null,null,null,null,null,null,null,null,null,null,null,null,null,null,null,null,null,null,2,"",null,null,null,null,"Runde",2,1,null,null,"Koblach",43741,null,null,null,3,"",null,null,null,null,"Runde",3,1,null,null,"Wolfurt",43743,null,null,4,"",null,null,null,null,"Runde",4,1,null,null,"Hard",43741]
[]
[]
[]
[]
[]
[]
[]
[]
[]
[]
[]
[]
[]
[]
[]
[]
[]
[]
[]
[]
[]
[]
[]
[]
[]
[]
[]
[]
[]
[]
[]
[]
[]
[]
[]
[]
[]
[]
[]
[]
[]
[]
[]
[]
[]
[]
[]
[]
[]
[]
[]
[]
[]
[]
[]
[]
[]
[]
[]
[]
[]
[]
[]
[]
[]
[]
[]
[]
[]
[]
[]
[]
[]
[]
[]
[]
[]
[]
[]
[]
[]
[]
[]
[]
[]
[]
[]
[]
[]
[]
[]
[]
[]
[]
[]
[]
[]
[]
[]
[]
[]
[]
[]
[]
[]
[]
[]
[]
[]
[]
[]
[]
[]
[]
[]
[]
[]
[]
[]
[]
[]
[]
[]
[]
[]
[]
[]
[]
[]
[]
[]
[]
[]
[]
[]
[]
[]
[]
[]
[]
[]
[]
[]
[]
[]
[]
[]
[]
[]
[]
[]
[]
[]
[]
[]
[]
[]
[]
[]
[]
[]
[]
[]
[]
[]
[]
[]
[]
[]
[]
[]
[]
[]
[]
[]
[]
[]
[]
[]
[]
[]
[]
[]
[]
[]
[]
[]
[]
[]
[]
[]
[]
[]
[]
[]
[]
[]
[]
[]
[]
[]
[]
[]
[]
[]
[]
[]
[]
[]
[]
[]
[]
[]
[]
[]
[]
[]
[]
[]
[]
[]
[]
[]
[]
[]
[]
[]
[]
[]
[]
[]
[]
[]
[]
[]
[]
[]
[]
[]
[]
[]
[]
[]
[]
[]
[]
[]
[]
[]
[]
[]
[]
[]
[]
[]
[]
[]
[]
[]
[]
[]
[]
[]
[]
[]
[]
[]
[]
[]
[]
[]
[]
[]
[]
[]
[]
[]
[]
[]
[]
[]
[]
[]
[]
[]
[]
[]
[]
[]
[]
[]
[]
[]
[]
[]
[]
[]
[]
[]
[]
[]
[]
[]
[]
[]
[]
[]
[]
[]
[]
[]
[]
[]
[]
[]
[]
[]
[]
[]
[]
[]
[]
[]
[]
[]
[]
[]
[]
[]
[]
[]
[]
[]
[]
[]
[]
[]
[]
[]
[]
[]
[]
[]
[]
[]
[]
[]
[]
[]
[]
[]
[]
[]
[]
[]
[]
[]
[]
[]
[]
[]
[]
[]
[]
[]
[]
[]
[]
[]
[]
[null,null,null,null,null,null,null,null,null,null,null,500]
[]
[]
["NT Spiel"]
[]
[]
[]
[]
[]
[]
[]
[]
[]
[]
[]
[]
[]
[null,null,null,null,null,null,null,null,null,null,null,500]
[]
[]
["NT Spiel"]
[]
[]
[]
[]
[]
[]
[]
[]
[]
[]
[]
[]
[]
[null,null,null,null,null,null,null,null,null,null,null,500]
[]
[]
["NT Spiel"]
[]
[]
[]
[]
[]
[]
[]
[]
[]
[]
[]
[]
[]
[null,null,null,null,null,null,null,null,null,null,null,500]
[]
[]
["NT Spiel"]

{"sheet":"Rangliste","index":1,"n_rows":58,"n_cols":43,"rows_kept":58,"cut":false,"hidden":false,"merged":[[3,0,3,14],[4,0,4,14]]}
[]
[]
[]
["Mannschaftsmeisterschaft  2019-2020",null,null,null,null,null,null,null,null,null,null,null,null,null,null,null,null,null,null,null,null,null,null,null,null,null,null,null,null,null,null,null,null,null,null,null,null,null,null,null,null,null,"Mannschaftsmeisterschaft  2019-2020"]
["Tabelle der 1. Runde",null,null,null,null,null,null,null,null,null,null,null,null,null,null,null,null,null,null,null,null,null,null,null,null,null,null,null,null,null,null,null,null,null,null,null,null,null,null,null,null,null,"Tabelle der 1. Runde"]
[]
["A-Liga",null,null,null,null,null,"Spiele","Si","Un","Ni","Kegel","TP","Leistungspunkte"]
[null,"1.","Götzis 1",null,null,null,1,1,0,0,1034,2,5,":",1]
[null,"2.","Koblach 1",null,null,null,1,1,0,0,1034,2,5,":",1]
[null,"3.","Dornbirn 1",null,null,null,1,1,0,0,1033,2,5,":",1]
[null,"4.","Lauterach",null,null,null,1,1,0,0,1012,2,4,":",2]
[null,"5.","Dornbirn 2",null,null,null,1,0,0,1,994,0,2,":",4]
[null,"6.","Hohenems",null,null,null,1,0,0,1,976,0,1,":",5]
[null,"7.","Nofels 1",null,null,null,1,0,0,1,975,0,1,":",5]
[null,"8.","Vorderwald",null,null,null,1,0,0,1,942,0,1,":",5]
[null,"9.","Bürs 1",null,null,null,0,0,0,0,0,0,0,":",0]
[null,"10.","Wolfurt 1",null,null,null,0,0,0,0,0,0,0,":",0]
[null,"11.","Reserve",null,null,null,0,0,0,0,0,0,0,":",0]
[null,"12.","Reserve",null,null,null,0,0,0,0,0,0,0,":",0]
["B-Liga",null,null,null,null,null,"Spiele","Si","Un","Ni","Kegel","TP","Leistungspunkte"]
[null,"1.","Vandans 2",null,null,null,1,1,0,0,969,2,5,":",1]
[null,"2.","Dornbirn 3",null,null,null,1,1,0,0,925,2,5,":",1]
[null,"3.","Lustenau 1",null,null,null,1,1,0,0,872,2,5,":",1]
[null,"4.","Koblach 2",null,null,null,1,1,0,0,962,2,4,":",2]
[null,"5.","Hard 1",null,null,null,1,1,0,0,961,2,4,":",2]
[null,"6.","Bürs 2",null,null,null,1,0,0,1,956,0,2,":",4]
[null,"7.","Koblach 3",null,null,null,1,0,0,1,920,0,2,":",4]
[null,"8.","Vandans 1",null,null,null,1,0,0,1,929,0,1,":",5]
[null,"9.","Mäder 1",null,null,null,1,0,0,1,878,0,1,":",5]
[null,"10.","Bludenz",null,null,null,1,0,0,1,836,0,1,":",5]
[null,"11.","Reserve",null,null,null,0,0,0,0,0,0,0,":",0]
[null,"12.","Reserve",null,null,null,0,0,0,0,0,0,0,":",0]
["C-Liga",null,null,null,null,null,"Spiele","Si","Un","Ni","Kegel","TP","Leistungspunkte"]
[null,"1.","Wolfurt 2",null,null,null,1,1,0,0,983,2,5,":",1]
[null,"2.","Rankweil",null,null,null,1,1,0,0,990,2,4,":",2]
[null,"3.","Götzis 2",null,null,null,1,1,0,0,896,2,4,":",2]
[null,"4.","Dornbirn 4",null,null,null,1,0,0,1,973,0,2,":",4]
[null,"5.","Nofels 2",null,null,null,1,0,0,1,887,0,2,":",4]
[null,"6.","Bregenz 1",null,null,null,1,0,0,1,907,0,1,":",5]
[null,"7.","Feldkirch 1",null,null,null,0,0,0,0,0,0,0,":",0]
[null,"8.","Feldkirch 2",null,null,null,0,0,0,0,0,0,0,":",0]
[null,"9.","Vandans 3",null,null,null,0,0,0,0,0,0,0,":",0]
[null,"10.","spielfrei",null,null,null,0,0,0,0,0,0,0,":",0]
[null,"11.","Reserve",null,null,null,0,0,0,0,0,0,0,":",0]
[null,"12.","Reserve",null,null,null,0,0,0,0,0,0,0,":",0]
["D-Liga",null,null,null,null,null,"Spiele","Si","Un","Ni","Kegel","TP","Leistungspunkte"]
[null,"1.","Rheindelta 1",null,null,null,1,1,0,0,983,2,6,":",0]
[null,"2.","Koblach 4",null,null,null,1,1,0,0,915,2,5,":",1]
[null,"3.","Hard 2",null,null,null,1,1,0,0,866,2,5,":",1]
[null,"4.","ESV Bregenz Wolfurt",null,null,null,1,1,0,0,949,2,4,":",2]
[null,"5.","Lustenau 2",null,null,null,1,0,0,1,905,0,2,":",4]
[null,"6.","Mäder 2",null,null,null,1,0,0,1,843,0,1,":",5]
[null,"7.","Bregenz 2",null,null,null,1,0,0,1,790,0,1,":",5]
[null,"8.","Rheindelta 2",null,null,null,1,0,0,1,825,0,0,":",6]
[null,"9.","Dornbirn 5",null,null,null,0,0,0,0,0,0,0,":",0]
[null,"10.","spielfrei",null,null,null,0,0,0,0,0,0,0,":",0]
[null,"11.","Reserve",null,null,null,0,0,0,0,0,0,0,":",0]
[null,"12.","Reserve",null,null,null,0,0,0,0,0,0,0,":",0]

{"sheet":"M - Ergebnisse","index":2,"n_rows":37,"n_cols":32,"rows_kept":37,"cut":false,"hidden":false,"merged":[[4,0,4,16],[5,0,5,16]]}
[]
[]
[]
[]
["Mannschaftsmeisterschaft  2019-2020",null,null,null,null,null,null,null,null,null,null,null,null,null,null,null,null,null,null,null,null,null,null,null,null,null,null,null,null,null,null,"Mannschaftsmeisterschaft  2019-2020"]
["Mannschaftsergebnisse der 1. Runde",null,null,null,null,null,null,null,null,null,null,null,null,null,null,null,null,null,null,null,null,null,null,null,null,null,null,null,null,null,null,"Mannschaftsergebnisse der 1. Runde"]
["A-Liga",1,"Götzis 1","-","Nofels 1",null,1034,":",975,5,":",1,353,"Schatzmann Doris",null,null,273]
["",1,"Koblach 1","-","Vorderwald",null,1034,":",942,5,":",1,135,"Fleisch Friedl",null,null,277]
["",1,"Dornbirn 1","-","Hohenems",null,1033,":",976,5,":",1,44,"Herceg Niki",null,null,267]
["",1,"Lauterach","-","Dornbirn 2",null,1012,":",994,4,":",2,47,"Kezic Blago",null,null,282]
[0,1,"Wolfurt 1","-","Bürs 1",null,0,":",0,0,":",0,"","",null,null,0]
[0,1,"Reserve","-","Reserve",null,0,":",0,0,":",0,"","",null,null,0]
[0,"",0,"-",0,null,0,null,0,0,":",0,"","",null,null,0]
[]
["B-Liga",2,"Lustenau 1","-","Bludenz",null,872,":",836,5,":",1,174,"Riedmann Werner",null,null,244]
["",2,"Koblach 2","-","Koblach 3",null,962,":",920,4,":",2,132,"Bottesi Siegfried",null,null,265]
["",2,"Hard 1","-","Bürs 2",null,961,":",956,4,":",2,321,"Hepberger Monika",null,null,257]
["",2,"Vandans 1","-","Vandans 2",null,929,":",969,1,":",5,436,"Bitschnau Ursula",null,null,253]
["",2,"Mäder 1","-","Dornbirn 3",null,878,":",925,1,":",5,40,"Ehgartner Wolfgang",null,null,245]
[0,2,"Reserve","-","Reserve",null,0,":",0,0,":",0,"","",null,null,0]
[0,"",0,"-",0,null,0,null,0,0,":",0,"","",null,null,0]
[]
["C-Liga",3,"Wolfurt 2","-","Bregenz 1",null,983,":",907,5,":",1,275,"Wolf Othmar",null,null,261]
["",3,"Götzis 2","-","Nofels 2",null,896,":",887,4,":",2,197,"Lins Josef",null,null,249]
["",3,"Dornbirn 4","-","Rankweil",null,973,":",990,2,":",4,221,"Simoner Gottfried",null,null,255]
[null,3,"Feldkirch 1","-","Feldkirch 2",null,0,":",0,0,":",0,"","",null,null,0]
[0,3,"Vandans 3","-","spielfrei",null,0,":",0,0,":",0,"","",null,null,0]
[0,3,"Reserve","-","Reserve",null,0,":",0,0,":",0,"","",null,null,0]
[0,"",null,null,null,null,0,null,0,0,":",0,"","",null,null,0]
[]
["D-Liga",4,"Rheindelta 1","-","Rheindelta 2",null,983,":",825,6,":",0,229,"Hummel Franz",null,null,260]
["",4,"Koblach 4","-","Mäder 2",null,915,":",843,5,":",1,137,"Haaser Andreas",null,null,236]
["",4,"Hard 2","-","Bregenz 2",null,866,":",790,5,":",1,363,"Woinesich Eva",null,null,252]
["",4,"ESV Bregenz Wolfurt","-","Lustenau 2",null,949,":",905,4,":",2,464,"Schaarschmidt Heidemarie",null,null,268]
[null,4,"Dornbirn 5","-","spielfrei",null,0,":",0,0,":",0,"","",null,null,0]
[0,4,"Reserve","-","Reserve",null,0,":",0,0,":",0,"","",null,null,0]
[0,"",0,"-",0,null,0,null,0,0,":",0,"","",null,null,0]

{"sheet":"Spielergebnisse","index":3,"n_rows":5,"n_cols":43,"rows_kept":5,"cut":false,"hidden":true,"merged":[[2,19,2,22]]}
[]
[]
[]
[null,"Mannschaftsmeisterschaft  2018-2019",null,null,null,null,null,null,null,null,null,null,null,null,null,null,null,null,null,null,null,null,null,null,null,null,null,null,null,null,null,null,null,null,null,null,null,null,null,null,null,null,"Mannschaftsmeisterschaft  2018-2019"]
["Spielberichte der 1. Runde der Mannschaftsmeisterschaft 2019/20","Spielerergebnisse der 18. Runde",null,null,null,null,null,null,null,null,null,null,null,null,null,null,null,null,null,null,null,null,null,null,null,null,null,null,null,null,null,null,null,null,null,null,null,null,null,null,null,null,"Spielerergebnisse der 1. Runde"]

{"sheet":"Tabelle1","index":4,"n_rows":0,"n_cols":0,"rows_kept":0,"cut":false,"hidden":true,"merged":[]}